bitfinex/quotes_BTCUSD_20250421
["timestamp","ask_amount","ask_price","bid_price","bid_amount"]
[1745236960474,0.01250377,86928.0,86924.0,0.24158929]
[1745236960679,0.01250377,86928.0,86925.0,0.24158601]
[1745236960878,0.27941338,86934.0,86927.0,0.24158195]
[1745236961836,0.04935309,86934.0,86931.0,0.01150337]
[1745236962046,0.00045309,86934.0,86933.0,0.34]
[1745236963633,0.00145309,86934.0,86933.0,0.34]
[1745236964263,0.00145309,86934.0,86931.0,0.01150337]
[1745236964777,0.01150311,86933.0,86930.0,0.34]
[1745236964983,0.23006752,86931.0,86930.0,0.34]
[1745236965551,0.0115035,86930.0,86927.0,0.0115039]
[1745236966390,0.01150364,86929.0,86926.0,0.24158299]
[1745236968312,0.15,86928.0,86926.0,0.24158299]
[1745236969074,0.15,86928.0,86925.0,0.01150417]
[1745236969279,0.0115039,86927.0,86924.0,0.34]
[1745236969513,0.01150469,86921.0,86916.0,0.01150536]
[1745236969708,0.01150483,86920.0,86917.0,0.01150522]
[1745236969965,0.01150456,86922.0,86918.0,0.35150509]
[1745236970198,0.0452,86926.0,86921.0,0.34]
[1745236970199,0.28678682,86926.0,86921.0,0.34]
[1745236970439,0.0115043,86924.0,86921.0,0.34]
[1745236970864,0.24159101,86924.0,86921.0,0.34]
[1745236972230,0.0115043,86924.0,86920.0,0.35150483]
[1745236972634,0.01150364,86929.0,86925.0,0.01150417]
[1745236972787,0.27577016,86931.0,86925.0,0.24158628]
[1745236972993,0.01150364,86929.0,86925.0,0.01150417]
[1745236973207,0.00045309,86934.0,86925.0,0.24158689]
[1745236973511,0.01150324,86932.0,86926.0,0.23007938]
[1745236974561,0.01150311,86933.0,86927.0,0.34]
[1745236974754,0.01150311,86933.0,86929.0,0.35150364]
[1745236974954,0.01150311,86933.0,86930.0,0.0115035]
[1745236975517,0.00045309,86934.0,86931.0,0.01150337]
[1745236975721,0.00045309,86934.0,86933.0,0.34]
[1745236977055,0.00145309,86934.0,86932.0,0.34]
[1745236977263,0.23151274,86934.0,86932.0,0.34]
[1745236977935,0.24301571,86934.0,86930.0,0.3515035]
[1745236978130,0.24201571,86934.0,86930.0,0.3515035]
[1745236978340,0.00045309,86934.0,86932.0,0.23006346]
[1745236978621,0.00145309,86934.0,86933.0,0.34]
[1745236979573,0.00045309,86934.0,86933.0,0.34]
[1745236982995,0.00045309,86934.0,86932.0,0.57006346]
[1745236983205,0.00045309,86934.0,86933.0,0.34]
[1745236991460,0.00045309,86934.0,86933.0,0.50644791]
[1745236991675,0.00045309,86934.0,86933.0,0.387]
[1745236991893,0.00045309,86934.0,86933.0,0.341]
[1745236993937,0.00045309,86934.0,86933.0,0.342]
[1745236994350,0.00045309,86934.0,86933.0,0.341]
[1745236994590,0.00045309,86934.0,86933.0,0.342]
[1745236994766,0.00019672,86934.0,86933.0,0.342]
[1745236996260,0.00019672,86934.0,86933.0,0.002]
[1745236996472,0.00019672,86934.0,86933.0,0.342]
[1745237006912,0.00019672,86934.0,86933.0,0.002]
[1745237007132,0.04799672,86934.0,86933.0,0.002]
[1745237007589,0.04799672,86934.0,86933.0,0.001]
[1745237008655,0.04899672,86934.0,86933.0,0.001]
[1745237010652,0.16844463,86934.0,86933.0,0.001]
[1745237010876,0.01150417,86925.0,86921.0,0.01150469]
[1745237011291,0.0115043,86924.0,86921.0,0.01150469]
[1745237011508,0.23010722,86916.0,86903.0,0.64194117]
[1745237011746,0.23010604,86917.0,86913.0,0.01150575]
[1745237011955,0.01150456,86922.0,86917.0,0.01150522]
[1745237012173,0.24157986,86928.0,86919.0,0.01150496]
[1745237012386,0.01150311,86933.0,86928.0,0.01150377]
[1745237012586,0.24156991,86932.0,86928.0,0.01150377]
[1745237012812,0.01150337,86931.0,86926.0,0.01150403]
[1745237012967,0.01150417,86925.0,86919.0,0.01150496]
[1745237013175,0.0115043,86924.0,86921.0,0.01150469]
[1745237013523,0.01150443,86923.0,86919.0,0.01150496]
[1745237013903,0.24159312,86923.0,86919.0,0.01150496]
[1745237014111,0.24159312,86923.0,86917.0,0.01150522]
[1745237014112,0.01150469,86921.0,86917.0,0.01150522]
[1745237014325,0.01150443,86923.0,86919.0,0.01150496]
[1745237014547,0.0115043,86924.0,86920.0,0.01150483]
[1745237015281,0.0115043,86924.0,86920.0,0.24159917]
[1745237015412,0.0115043,86924.0,86921.0,0.01150469]
[1745237015619,0.0115043,86924.0,86921.0,0.24159688]
[1745237017639,0.0115043,86924.0,86919.0,0.24160264]
[1745237017640,0.01150417,86925.0,86922.0,0.01150456]
[1745237017846,0.24158777,86925.0,86922.0,0.01150456]
[1745237018053,0.01150417,86925.0,86922.0,0.24159574]
[1745237018286,0.2415844,86927.0,86922.0,0.24159574]
[1745237018487,0.2415844,86927.0,86923.0,0.01150443]
[1745237018694,0.01150403,86926.0,86923.0,0.01150443]
[1745237019007,0.24158757,86925.0,86922.0,0.01150456]
[1745237019212,0.2415844,86927.0,86923.0,0.01150443]
[1745237019431,0.01150377,86928.0,86923.0,0.01150443]
[1745237019648,0.24157544,86930.0,86927.0,0.0115039]
[1745237020730,0.01150364,86929.0,86925.0,0.24158606]
[1745237020936,0.05830377,86928.0,86925.0,0.01150417]
[1745237022731,0.01150377,86928.0,86925.0,0.01150417]
[1745237022910,0.01150311,86933.0,86929.0,0.24157414]
[1745237023350,0.01150311,86933.0,86925.0,0.01150417]
[1745237023550,0.23006819,86931.0,86926.0,0.23008075]
[1745237023748,0.24157156,86931.0,86927.0,0.0115039]
[1745237024363,0.01150337,86931.0,86927.0,0.0115039]
[1745237025008,0.01150377,86928.0,86923.0,0.01150443]
[1745237025207,0.01150377,86928.0,86924.0,0.0115043]
[1745237025761,0.23006487,86932.0,86917.0,0.01150522]
[1745237025962,0.01150443,86923.0,86920.0,0.01150483]
[1745237026139,0.0468,86922.0,86920.0,0.01150483]
[1745237026589,0.0468,86922.0,86920.0,0.24159988]
[1745237027587,0.0468,86922.0,86920.0,0.24159993]
[1745237028152,0.01150417,86925.0,86921.0,0.24159723]
[1745237028931,0.0468,86927.0,86924.0,0.24159035]
[1745237029147,0.2883821,86927.0,86923.0,0.01150443]
[1745237029353,0.01150403,86926.0,86923.0,0.01150443]
[1745237029750,0.0468,86927.0,86924.0,0.0115043]
[1745237030745,0.01150377,86928.0,86924.0,0.0115043]
[1745237031113,0.24158065,86928.0,86924.0,0.0115043]
[1745237031970,0.0115039,86927.0,86921.0,0.24159723]
[1745237032173,0.01150403,86926.0,86923.0,0.01150443]
[1745237032379,0.0115039,86927.0,86924.0,0.34]
[1745237033413,0.0468,86932.0,86927.0,0.34]
[1745237033650,0.01150403,86926.0,86923.0,0.01150443]
[1745237033881,0.01150417,86925.0,86922.0,0.34]
[1745237034222,0.01150403,86926.0,86922.0,0.58159544]
[1745237034435,0.0115039,86927.0,86925.0,0.34]
[1745237035127,0.23007546,86928.0,86925.0,0.34]
[1745237035561,0.001,86927.0,86925.0,0.34]
[1745237036043,0.23007546,86928.0,86925.0,0.34]
[1745237036522,0.23107546,86928.0,86925.0,0.34]
[1745237037443,0.24257923,86928.0,86925.0,0.34]
[1745237037678,0.0115043,86924.0,86920.0,0.58159962]
[1745237037894,0.01150443,86923.0,86920.0,0.01150483]
[1745237038105,0.0115043,86924.0,86921.0,0.01150469]
[1745237039466,0.01150456,86922.0,86918.0,0.34]
[1745237039677,0.01150456,86922.0,86918.0,0.58160546]
[1745237039918,0.01150443,86923.0,86919.0,0.24160232]
[1745237040147,0.24159517,86923.0,86919.0,0.01150496]
[1745237040365,0.0489,86924.0,86921.0,0.24159614]
[1745237041886,0.0489,86924.0,86923.0,0.34]
[1745237042104,0.24156974,86932.0,86927.0,0.0115039]
[1745237042360,0.24157514,86930.0,86925.0,0.58158498]
[1745237042575,0.01150364,86929.0,86925.0,0.58158549]
[1745237042779,0.01150364,86929.0,86925.0,0.35150417]
[1745237043213,0.0115039,86927.0,86924.0,0.0115043]
[1745237043435,0.01150364,86929.0,86925.0,0.35150417]
[1745237043672,0.01150377,86928.0,86925.0,0.34]
[1745237043864,0.23007964,86927.0,86925.0,0.34]
[1745237044621,0.24158354,86927.0,86923.0,0.35150443]
[1745237044815,0.24158624,86926.0,86923.0,0.35150443]
[1745237045125,0.01150403,86926.0,86923.0,0.34]
[1745237045346,0.01150403,86926.0,86923.0,0.58159306]
[1745237045564,0.01150403,86926.0,86923.0,0.35150443]
[1745237046016,0.01150403,86926.0,86923.0,0.58159119]
[1745237046696,0.15,86925.0,86923.0,0.58159119]
[1745237048506,0.151,86925.0,86923.0,0.58159119]
[1745237050186,0.001,86925.0,86923.0,0.58159119]
[1745237052111,0.00019672,86934.0,86933.0,0.57006223]
[1745237053375,0.00019672,86934.0,86933.0,0.57106223]
[1745237054267,0.00019672,86934.0,86933.0,0.62086223]
[1745237054475,0.0008442,86943.0,86942.0,0.57003841]
[1745237054683,0.00098001,86943.0,86942.0,0.57003841]
[1745237055637,0.00198001,86943.0,86942.0,0.57003841]
[1745237060044,0.00098001,86943.0,86942.0,0.57003841]
[1745237060535,0.00198001,86943.0,86942.0,0.57003841]
[1745237061529,0.00198001,86943.0,86942.0,0.61903841]
[1745237061795,0.00098001,86943.0,86942.0,0.61903841]
[1745237061989,0.00198001,86943.0,86942.0,0.61903841]
[1745237063312,0.00098001,86943.0,86942.0,0.57003841]
[1745237065425,0.00102001,86943.0,86942.0,0.57003841]
[1745237086132,0.00102001,86943.0,86942.0,0.34]
[1745237086783,0.04682001,86943.0,86942.0,0.57003841]
[1745237089968,0.00102001,86943.0,86942.0,0.57003841]
[1745237098235,0.00102001,86943.0,86942.0,0.57103841]
[1745237099280,0.00102001,86945.0,86944.0,0.23003312]
[1745237099482,0.0048442,86949.0,86948.0,0.57002254]
[1745237099483,0.00178417,86949.0,86948.0,0.57002254]
[1745237099717,0.00186743,86949.0,86948.0,0.68947045]
[1745237101578,0.00186743,86949.0,86948.0,0.57002254]
[1745237101789,0.00186743,86949.0,86948.0,0.001]
[1745237101990,0.00186743,86949.0,86948.0,0.23102254]
[1745237102829,0.00186743,86949.0,86948.0,0.23561754]
[1745237106758,0.00290743,86949.0,86948.0,0.005595]
[1745237106979,0.00290743,86949.0,86948.0,0.001]
[1745237107293,0.28212732,86949.0,86948.0,0.001]
[1745237107444,0.23003577,86943.0,86942.0,0.001]
[1745237107876,0.27923577,86943.0,86942.0,0.001]
[1745237108281,0.23003577,86943.0,86942.0,0.001]
[1745237108568,0.23292732,86949.0,86942.0,0.001]
[1745237108569,0.00290743,86949.0,86948.0,0.34]
[1745237114284,0.00294743,86949.0,86948.0,0.34]
[1745237118687,0.00294743,86949.0,86948.0,0.33]
[1745237119468,0.00294743,86949.0,86948.0,0.331]
[1745237119901,0.00294743,86949.0,86948.0,0.33]
[1745237120320,0.00294743,86949.0,86948.0,0.331]
[1745237121850,0.00294743,86949.0,86948.0,0.001]
[1745237130919,0.00194743,86949.0,86948.0,0.001]
[1745237131745,0.00194743,86949.0,86947.0,0.2300226]
[1745237136668,0.00194743,86949.0,86948.0,0.34]
[1745237140758,0.00194743,86949.0,86948.0,0.11497971]
[1745237142144,0.00194743,86949.0,86947.0,0.2300226]
[1745237142772,0.00194743,86949.0,86948.0,0.34]
[1745237144330,0.00194743,86949.0,86947.0,0.34]
[1745237144976,0.00194743,86949.0,86947.0,0.57002378]
[1745237146043,0.24346963,86949.0,86946.0,0.34]
[1745237146315,0.00194743,86949.0,86947.0,0.23002518]
[1745237146526,0.00194743,86949.0,86946.0,0.35150139]
[1745237146727,0.00194743,86949.0,86946.0,0.58152693]
[1745237147318,0.00194743,86949.0,86947.0,0.23002351]
[1745237147771,0.00194743,86949.0,86946.0,0.01150139]
[1745237147971,0.01150165,86944.0,86940.0,0.01150218]
[1745237148181,0.0451,86943.0,86941.0,0.01150205]
[1745237149188,0.0451,86943.0,86942.0,0.34]
[1745237151043,0.0461,86943.0,86942.0,0.34]
[1745237151842,0.001,86943.0,86942.0,0.34]
[1745237154338,0.001,86943.0,86941.0,0.01150205]
[1745237154476,0.001,86943.0,86942.0,0.34]
[1745237155089,0.01150152,86945.0,86942.0,0.58153863]
[1745237155290,0.01150139,86946.0,86942.0,0.58153863]
[1745237155703,0.01150073,86951.0,86947.0,0.34]
[1745237156826,0.24151678,86951.0,86947.0,0.34]
[1745237157444,0.01150086,86950.0,86946.0,0.01150139]
[1745237157650,0.24151961,86950.0,86946.0,0.01150139]
[1745237158445,0.00294743,86949.0,86947.0,0.34]
[1745237159187,0.00294743,86949.0,86947.0,0.57002358]
[1745237160194,0.00194743,86949.0,86947.0,0.57002358]
[1745237160612,0.00294743,86949.0,86947.0,0.57002358]
[1745237161020,0.00194743,86949.0,86947.0,0.32686352]
[1745237161374,0.00294743,86949.0,86947.0,0.23002358]
[1745237163092,0.19608991,86954.0,86949.0,0.24151998]
[1745237163263,0.01150073,86951.0,86947.0,0.23002358]
[1745237163444,0.01150073,86951.0,86948.0,0.01150112]
[1745237163654,0.24151663,86951.0,86948.0,0.35150112]
[1745237164523,0.24151663,86951.0,86948.0,0.34]
[1745237165379,0.24251663,86951.0,86948.0,0.34]
[1745237171794,0.23001873,86950.0,86948.0,0.34]
[1745237173222,0.24251959,86950.0,86946.0,0.01150139]
[1745237173736,0.24151959,86950.0,86946.0,0.01150139]
[1745237174270,0.01150099,86949.0,86946.0,0.01150139]
[1745237174482,0.24152226,86949.0,86946.0,0.01150139]
[1745237174682,0.01150112,86948.0,86945.0,0.24153113]
[1745237175301,0.24152643,86947.0,86944.0,0.01150165]
[1745237176710,0.01150125,86947.0,86944.0,0.01150165]
[1745237177637,0.01150112,86948.0,86944.0,0.24153278]
[1745237179900,0.01150112,86948.0,86940.0,0.24154565]
[1745237180124,0.01150152,86945.0,86940.0,0.24154565]
[1745237180350,0.23003457,86944.0,86940.0,0.24154565]
[1745237180561,0.24153262,86945.0,86940.0,0.24154565]
[1745237180868,0.01150178,86943.0,86940.0,0.01150218]
[1745237181782,0.01150178,86943.0,86939.0,0.01150231]
[1745237181783,0.23004106,86941.0,86939.0,0.34]
[1745237182030,0.01150231,86939.0,86936.0,0.01150271]
[1745237182847,0.24154311,86941.0,86937.0,0.01150258]
[1745237185890,0.01150205,86941.0,86938.0,0.34]
[1745237186044,0.01150192,86942.0,86939.0,0.01150231]
[1745237186418,0.01150205,86941.0,86938.0,0.34]
[1745237186823,0.01150205,86941.0,86938.0,0.35150245]
[1745237188511,0.01150205,86941.0,86938.0,0.24155009]
[1745237190043,0.01150192,86942.0,86938.0,0.24155009]
[1745237190178,0.01150192,86942.0,86939.0,0.01150231]
[1745237192704,0.01150192,86942.0,86940.0,0.34]
[1745237193254,0.24154093,86942.0,86940.0,0.34]
[1745237193857,0.01150178,86943.0,86940.0,0.01150218]
[1745237195257,0.01150178,86943.0,86940.0,0.35150218]
[1745237196313,0.0489,86945.0,86942.0,0.34]
[1745237196523,0.29043393,86945.0,86942.0,0.34]
[1745237196970,0.23003577,86943.0,86942.0,0.34]
[1745237197206,0.23003312,86944.0,86942.0,0.34]
[1745237197438,0.23003312,86944.0,86940.0,0.35150218]
[1745237197645,0.06140152,86945.0,86942.0,0.34]
[1745237198641,0.2914334,86945.0,86942.0,0.34]
[1745237198826,0.2914334,86945.0,86942.0,0.35150192]
[1745237200033,0.06140152,86945.0,86942.0,0.35150192]
[1745237203793,0.15,86944.0,86942.0,0.35150192]
[1745237204418,0.15,86944.0,86942.0,0.58153908]
[1745237205430,0.0499,86945.0,86942.0,0.58153908]
[1745237206391,0.06140152,86945.0,86942.0,0.58153908]
[1745237209234,0.0499,86945.0,86942.0,0.58153908]
[1745237209987,0.0499,86945.0,86944.0,0.34]
[1745237211312,0.0509,86945.0,86944.0,0.34]
[1745237214177,0.01150165,86944.0,86940.0,0.35150218]
[1745237214394,0.0509,86945.0,86941.0,0.01150205]
[1745237214610,0.29243361,86945.0,86942.0,0.01150192]
[1745237214815,0.06240152,86945.0,86942.0,0.35150192]
[1745237215020,0.06140152,86945.0,86942.0,0.34]
[1745237215240,0.06140152,86945.0,86942.0,0.35150192]
[1745237218931,0.24153477,86944.0,86941.0,0.34]
[1745237219137,0.01150165,86944.0,86941.0,0.35150205]
[1745237221326,0.2415434,86941.0,86939.0,0.34]
[1745237221821,0.0462,86940.0,86939.0,0.34]
[1745237222031,0.01150337,86931.0,86928.0,0.00922]
[1745237222235,0.01150337,86931.0,86928.0,0.34922]
[1745237223712,0.01150337,86931.0,86928.0,0.00922]
[1745237223713,0.23007017,86930.0,86928.0,0.00922]
[1745237224144,0.24157225,86931.0,86928.0,0.02072377]
[1745237224583,0.24157225,86931.0,86928.0,0.36072377]
[1745237224584,0.01150337,86931.0,86928.0,0.36072377]
[1745237224793,0.01150311,86933.0,86929.0,0.01150364]
[1745237225001,0.01150324,86932.0,86929.0,0.01150364]
[1745237227122,0.01150337,86931.0,86928.0,0.00922]
[1745237227538,0.24157306,86931.0,86928.0,0.00922]
[1745237228281,0.01150337,86931.0,86928.0,0.36072377]
[1745237229268,0.01150337,86931.0,86928.0,0.02072377]
[1745237229464,0.24157239,86931.0,86928.0,0.02072377]
[1745237229982,0.24157239,86931.0,86928.0,0.00922]
[1745237230618,0.23007281,86929.0,86928.0,0.00922]
[1745237230977,0.0462,86930.0,86928.0,0.00922]
[1745237231183,0.23007221,86930.0,86928.0,0.00922]
[1745237232566,0.24157328,86931.0,86928.0,0.00922]
[1745237233220,0.24156844,86932.0,86929.0,0.34]
[1745237233702,1.50276471,87027.0,86929.0,0.34]
[1745237233703,0.01150178,86943.0,86938.0,0.01150245]
[1745237233955,0.29143433,86945.0,86944.0,0.23003312]
[1745237233956,0.001,86945.0,86944.0,0.23003312]
[1745237234215,0.001,86945.0,86944.0,0.34]
[1745237234818,0.001,86945.0,86944.0,0.57003312]
[1745237236473,0.0139269,86961.0,86957.0,0.56999873]
[1745237236698,0.0006884,86959.0,86958.0,0.34]
[1745237236941,0.0006884,86959.0,86958.0,0.50534791]
[1745237237166,0.0007684,86964.0,86961.0,0.0114994]
[1745237237392,0.4162,86996.0,86977.0,0.56994584]
[1745237237598,0.01149504,86994.0,86977.0,0.66958584]
[1745237237809,0.0114953,86992.0,86977.0,0.66958584]
[1745237238041,0.00088923,86978.0,86977.0,0.66958584]
[1745237239391,0.00088923,86978.0,86977.0,0.68197904]
[1745237240889,0.00088923,86978.0,86977.0,0.68397904]
[1745237242497,4.02e-05,86989.0,86986.0,0.0114961]
[1745237242712,4.02e-05,86989.0,86988.0,0.56991677]
[1745237242920,4.02e-05,86989.0,86988.0,0.68936468]
[1745237244200,4.02e-05,86989.0,86988.0,0.76216073]
[1745237244407,4.02e-05,86989.0,86988.0,0.86476073]
[1745237245218,0.01,87000.0,86999.0,0.62942854]
[1745237245459,0.01,87000.0,86999.0,0.74887645]
[1745237246789,0.004,87009.0,87008.0,0.56986392]
[1745237246929,0.00413571,87009.0,87008.0,0.66946392]
[1745237247135,0.00413571,87009.0,87008.0,0.83841183]
[1745237247497,0.0004221,87024.0,87023.0,0.56982429]
[1745237247692,0.0004221,87046.0,87037.0,0.34]
[1745237248148,0.00445226,87039.0,87038.0,0.56978469]
[1745237248568,0.00445226,87039.0,87038.0,0.6892326]
[1745237248977,7e-05,87050.0,87046.0,0.34]
[1745237249190,0.01279662,87048.0,87047.0,1.21740679]
[1745237249422,0.00048773,87048.0,87047.0,1.21510969]
[1745237249876,0.00071,87058.0,87055.0,0.01148699]
[1745237250103,0.0004221,87065.0,87063.0,0.34]
[1745237250304,0.00357791,87069.0,87068.0,0.56970551]
[1745237250931,0.00357791,87069.0,87068.0,0.66926551]
[1745237251760,0.00357791,87069.0,87068.0,0.78971342]
[1745237252565,0.00357791,87069.0,87068.0,0.69115342]
[1745237252718,0.00357791,87069.0,87068.0,0.79071342]
[1745237252918,0.00357791,87069.0,87068.0,0.78971342]
[1745237253168,0.00357791,87069.0,87068.0,0.69115342]
[1745237253371,0.00357791,87069.0,87068.0,0.80525427]
[1745237253576,0.00357791,87069.0,87068.0,0.80425427]
[1745237253772,0.15184565,87099.0,87092.0,0.01148211]
[1745237253995,0.22962935,87097.0,87092.0,0.01148211]
[1745237254204,0.01148488,87071.0,87068.0,0.004]
[1745237254808,0.22970024,87070.0,87068.0,0.004]
[1745237255133,0.22970024,87070.0,87068.0,0.001]
[1745237255470,0.34914815,87070.0,87068.0,0.001]
[1745237255646,0.34914815,87070.0,87068.0,0.004]
[1745237256022,0.34914815,87070.0,87068.0,0.001]
[1745237256225,0.01148488,87071.0,87068.0,0.002]
[1745237256405,0.01148461,87073.0,87068.0,0.01348527]
[1745237256611,0.0487,87077.0,87074.0,0.34]
[1745237256969,0.00013557,87076.0,87074.0,0.22968968]
[1745237257093,0.00013557,87076.0,87073.0,0.35148461]
[1745237258403,0.00013557,87076.0,87073.0,0.58117437]
[1745237258599,0.00013557,87076.0,87071.0,0.01148488]
[1745237258600,0.00013557,87076.0,87070.0,0.01148501]
[1745237258807,0.01148488,87071.0,87066.0,0.01148553]
[1745237259160,0.22970024,87070.0,87055.0,0.01148699]
[1745237259396,0.34914815,87070.0,87033.0,0.22979629]
[1745237259575,0.34914815,87070.0,87044.0,0.01148844]
[1745237259576,0.0939,87069.0,87044.0,0.01148844]
[1745237259770,0.72140532,87069.0,87041.0,0.004]
[1745237259951,0.01148844,87044.0,87041.0,0.003]
[1745237260156,0.22977149,87043.0,87041.0,0.003]
[1745237260778,0.21334791,87042.0,87041.0,0.003]
[1745237262786,0.0939,87042.0,87041.0,0.003]
[1745237262988,0.0458,87042.0,87041.0,0.003]
[1745237264981,0.16524791,87042.0,87041.0,0.003]
[1745237268116,0.31524791,87042.0,87041.0,0.003]
[1745237268343,0.73144791,87042.0,87041.0,0.003]
[1745237268942,0.83092791,87042.0,87041.0,0.003]
[1745237269140,0.68092791,87042.0,87041.0,0.003]
[1745237269415,0.01148791,87048.0,87044.0,0.01148844]
[1745237269573,0.24124899,87047.0,87044.0,0.01148844]
[1745237269723,0.24124899,87047.0,87042.0,0.34]
[1745237269932,0.22977149,87043.0,87042.0,0.34]
[1745237270377,0.11944791,87046.0,87041.0,0.35448883]
[1745237270607,0.11944791,87046.0,87043.0,0.01148857]
[1745237270790,0.01148804,87047.0,87043.0,0.01148857]
[1745237270993,0.24124915,87047.0,87043.0,0.01148857]
[1745237271213,0.01148817,87046.0,87042.0,0.0114887]
[1745237271384,0.01148817,87046.0,87041.0,0.35448883]
[1745237271385,0.01148844,87044.0,87041.0,0.343]
[1745237271751,0.22977212,87043.0,87041.0,0.003]
[1745237271960,0.11944791,87042.0,87041.0,0.003]
[1745237272156,0.24125729,87044.0,87041.0,0.003]
[1745237272769,0.01148804,87047.0,87044.0,0.01148844]
[1745237272967,0.13093595,87047.0,87043.0,0.01148857]
[1745237273212,0.24125174,87046.0,87042.0,0.3514887]
[1745237273403,0.01148751,87051.0,87044.0,0.24125508]
[1745237273594,0.01148791,87048.0,87045.0,0.01148831]
[1745237274054,0.22976901,87044.0,87041.0,0.003]
[1745237274285,0.24125729,87044.0,87041.0,0.003]
[1745237274495,0.24125729,87044.0,87041.0,0.343]
[1745237276698,0.07,87043.0,87041.0,0.003]
[1745237276922,0.29977149,87043.0,87041.0,0.003]
[1745237277041,0.07,87043.0,87041.0,0.003]
[1745237277458,0.29977372,87043.0,87041.0,0.003]
[1745237277867,0.07,87043.0,87041.0,0.003]
[1745237278297,0.07,87043.0,87041.0,0.343]
[1745237278735,0.07,87043.0,87041.0,0.57277531]
[1745237279098,0.24122094,87058.0,87052.0,0.01148738]
[1745237279301,0.01148672,87057.0,87053.0,0.01148725]
[1745237279693,0.24122403,87056.0,87052.0,0.01148738]
[1745237280247,0.24122403,87056.0,87051.0,0.35148751]
[1745237280445,0.01148685,87056.0,87053.0,0.01148725]
[1745237280669,0.01148712,87054.0,87049.0,0.35148778]
[1745237280834,0.01148685,87056.0,87052.0,0.01148738]
[1745237281034,0.01148685,87056.0,87049.0,0.35148778]
[1745237281035,0.01148738,87052.0,87049.0,0.34]
[1745237281657,0.01148725,87053.0,87049.0,0.35148778]
[1745237281901,0.01148738,87052.0,87049.0,0.01148778]
[1745237282227,0.01148712,87054.0,87050.0,0.01148765]
[1745237282430,0.01148633,87060.0,87054.0,0.01148712]
[1745237282714,0.2297396,87056.0,87052.0,0.01148738]
[1745237283708,0.01148699,87055.0,87052.0,0.01148738]
[1745237284113,0.01148699,87055.0,87051.0,0.34]
[1745237284316,0.01148646,87059.0,87051.0,0.01148751]
[1745237284549,0.22970508,87069.0,87063.0,0.35148593]
[1745237284781,0.24117904,87073.0,87064.0,0.0114858]
[1745237284987,0.24118248,87071.0,87066.0,0.01148553]
[1745237285187,0.01148488,87071.0,87067.0,0.24119355]
[1745237285338,0.01148435,87075.0,87067.0,0.0114854]
[1745237285545,0.01148461,87073.0,87067.0,0.0114854]
[1745237285768,0.01148488,87071.0,87067.0,0.0114854]
[1745237285972,0.24118449,87071.0,87067.0,0.0114854]
[1745237286555,0.01148501,87070.0,87067.0,0.0114854]
[1745237286750,0.01148514,87069.0,87066.0,0.02414192]
[1745237287602,0.01148514,87069.0,87066.0,0.01148553]
[1745237288360,0.01148461,87073.0,87068.0,0.24118889]
[1745237288562,0.01148488,87071.0,87068.0,0.24118889]
[1745237288768,0.01148488,87071.0,87068.0,0.01148527]
[1745237288969,0.01148461,87073.0,87068.0,0.01148527]
[1745237289179,0.01148461,87073.0,87069.0,0.01148514]
[1745237289455,0.01148488,87071.0,87068.0,0.01148527]
[1745237289680,0.01148461,87073.0,87069.0,0.01148514]
[1745237290124,0.24117902,87073.0,87069.0,0.01148514]
[1745237290342,0.24118178,87072.0,87068.0,0.24118889]
[1745237290599,0.01148342,87082.0,87071.0,0.2296976]
[1745237290730,0.049,87101.0,87074.0,0.34]
[1745237290958,0.01148079,87102.0,87082.0,0.56966858]
[1745237291150,0.0004215,87105.0,87096.0,0.22963167]
[1745237291632,0.01148066,87103.0,87096.0,0.22963167]
[1745237291989,0.0004215,87105.0,87096.0,0.56963167]
[1745237297352,0.01148066,87103.0,87096.0,0.34]
[1745237297408,0.01148079,87102.0,87096.0,0.34]
[1745237297737,0.01148066,87103.0,87096.0,0.34]
[1745237298019,0.2415121,87105.0,87096.0,0.34]
[1745237298020,0.01148079,87102.0,87096.0,0.34]
[1745237298777,0.24151183,87105.0,87096.0,0.34]
[1745237299127,0.01148118,87099.0,87096.0,0.34]
[1745237299548,0.000422,87104.0,87096.0,0.56963167]
[1745237301654,0.000422,87104.0,87096.0,0.66923167]
[1745237305136,0.000422,87104.0,87096.0,0.56963167]
[1745237305341,0.000422,87104.0,87096.0,0.66923167]
[1745237308286,0.000422,87104.0,87096.0,0.34]
[1745237308524,0.002,87097.0,87096.0,0.34]
[1745237308904,0.23162903,87097.0,87096.0,0.34]
[1745237309109,0.22965402,87088.0,87079.0,0.01148382]
[1745237309443,0.01148277,87087.0,87083.0,0.01148329]
[1745237309650,0.01148369,87080.0,87071.0,0.01148488]
[1745237309852,0.01148382,87079.0,87076.0,0.01148422]
[1745237310052,0.01148369,87080.0,87077.0,0.01148408]
[1745237310601,0.01148461,87073.0,87071.0,0.34]
[1745237310797,0.22968705,87075.0,87071.0,0.35148488]
[1745237311028,0.01048408,87077.0,87071.0,0.24118138]
[1745237311425,0.01148329,87083.0,87074.0,0.01148448]
[1745237311766,0.01148329,87083.0,87078.0,0.01148395]
[1745237311767,0.01148356,87081.0,87078.0,0.01148395]
[1745237312091,0.01148382,87079.0,87076.0,0.34]
[1745237312272,0.22967913,87078.0,87076.0,0.34]
[1745237312860,0.24116283,87079.0,87076.0,0.34]
[1745237313056,0.01148408,87077.0,87074.0,0.01148448]
[1745237314076,0.01148408,87077.0,87072.0,0.34]
[1745237314278,0.01148422,87076.0,87073.0,0.01148461]
[1745237314471,0.24117395,87075.0,87070.0,0.35148501]
[1745237314684,0.241177,87073.0,87070.0,0.34]
[1745237315017,0.01148435,87075.0,87071.0,0.01148488]
[1745237315737,0.001,87076.0,87073.0,0.01148461]
[1745237315919,0.001,87076.0,87073.0,0.35148461]
[1745237316761,0.23068446,87076.0,87073.0,0.34]
[1745237316958,0.22969318,87073.0,87071.0,0.34]
[1745237317968,0.2297003,87070.0,87068.0,0.02]
[1745237318178,0.05808448,87074.0,87068.0,0.02]
[1745237318355,0.01148474,87072.0,87068.0,0.03148527]
[1745237318562,0.01148488,87071.0,87068.0,0.03148527]
[1745237318774,0.22969232,87073.0,87068.0,0.03148527]
[1745237318775,0.05808448,87074.0,87070.0,0.01148501]
[1745237318984,0.01148488,87071.0,87068.0,0.02]
[1745237319158,0.24118479,87071.0,87068.0,0.02]
[1745237319826,0.22970255,87070.0,87068.0,0.02]
[1745237320205,0.24118479,87071.0,87068.0,0.02]
[1745237320969,0.22970237,87070.0,87068.0,0.02]
[1745237321545,0.24118479,87071.0,87068.0,0.36]
[1745237321754,0.01148488,87071.0,87068.0,0.37148527]
[1745237322307,0.24117739,87073.0,87068.0,0.60118841]